bitfinex/quotes_BTCUSD_20250610
["timestamp","ask_amount","ask_price","bid_price","bid_amount"]
[1749539586007,1.92681904,109410.0,109400.0,1.31681737]
[1749539586218,1.92681904,109410.0,109400.0,1.38973529]
[1749539586652,1.92681904,109410.0,109400.0,1.37263599]
[1749539587088,1.92681904,109410.0,109400.0,1.3897348]
[1749539587725,1.92681904,109410.0,109400.0,1.37263599]
[1749539587931,1.92681904,109410.0,109400.0,1.38973482]
[1749539588362,1.92681904,109410.0,109400.0,1.37263599]
[1749539588932,1.92681904,109410.0,109400.0,1.38973482]
[1749539589132,1.92681904,109410.0,109400.0,1.38973481]
[1749539589330,1.92681904,109410.0,109400.0,1.37263599]
[1749539589553,1.92681904,109410.0,109400.0,1.38973592]
[1749539589766,1.92681904,109410.0,109400.0,1.37263599]
[1749539589964,1.92681904,109410.0,109400.0,1.38973592]
[1749539590164,1.92681904,109410.0,109400.0,1.37263599]
[1749539590370,1.92681904,109410.0,109400.0,1.38973592]
[1749539590566,1.92681904,109410.0,109400.0,1.37263599]
[1749539590790,1.92681904,109410.0,109400.0,1.38973592]
[1749539591447,1.75315983,109410.0,109400.0,1.38973592]
[1749539591653,1.93595847,109410.0,109400.0,1.38973592]
[1749539591948,1.93595847,109410.0,109400.0,1.38973596]
[1749539592147,1.93595847,109410.0,109400.0,1.37263599]
[1749539592681,1.93595847,109410.0,109400.0,1.38973602]
[1749539592886,1.93595847,109410.0,109400.0,1.37263599]
[1749539593091,1.93595847,109410.0,109400.0,1.38973602]
[1749539593532,1.75315983,109410.0,109400.0,1.38973182]
[1749539593747,1.93595847,109410.0,109400.0,1.38973182]
[1749539593947,1.93595847,109410.0,109400.0,1.71263599]
[1749539594256,1.93595847,109410.0,109400.0,1.72973182]
[1749539594680,1.85372569,109410.0,109400.0,1.72973182]
[1749539594888,1.85372569,109410.0,109400.0,1.71263599]
[1749539595096,1.85372569,109410.0,109400.0,1.72973181]
[1749539595305,1.85372569,109410.0,109400.0,1.72973363]
[1749539595518,1.85372569,109410.0,109400.0,1.72973352]
[1749539595727,1.85372569,109410.0,109400.0,1.71263599]
[1749539595932,1.85372569,109410.0,109400.0,1.72973349]
[1749539596140,1.85372569,109410.0,109400.0,1.71263599]
[1749539596549,1.85372569,109410.0,109400.0,1.72973349]
[1749539596762,1.67092705,109410.0,109400.0,1.72973349]
[1749539596960,1.85372569,109410.0,109400.0,1.72973349]
[1749539597080,1.85372569,109410.0,109400.0,1.71263599]
[1749539597286,1.85372569,109410.0,109400.0,1.72973349]
[1749539599198,1.85372569,109410.0,109400.0,1.71263599]
[1749539599409,1.85372569,109410.0,109400.0,1.72973239]
[1749539599873,1.85372569,109410.0,109400.0,1.71263599]
[1749539600261,1.85372569,109410.0,109400.0,1.7297324]
[1749539600900,1.85359382,109410.0,109400.0,1.72973239]
[1749539601123,1.85359382,109410.0,109400.0,1.71263599]
[1749539601355,1.85359382,109410.0,109400.0,1.72973242]
[1749539602828,1.85359382,109410.0,109400.0,1.72973284]
[1749539603033,1.85359382,109410.0,109400.0,1.71403287]
[1749539603250,1.85359382,109410.0,109400.0,1.69693599]
[1749539603482,1.85359382,109410.0,109400.0,2.21913472]
[1749539604536,1.84445439,109410.0,109400.0,2.21913472]
[1749539604772,1.76222161,109410.0,109400.0,2.21913538]
[1749539604979,1.76222161,109410.0,109400.0,2.20203774]
[1749539605185,1.76222161,109410.0,109400.0,2.21913538]
[1749539605595,1.76222161,109410.0,109400.0,2.19725431]
[1749539606263,1.76222161,109410.0,109400.0,2.18015667]
[1749539606473,1.76222161,109410.0,109400.0,2.19725503]
[1749539606687,1.76222161,109410.0,109400.0,2.19725506]
[1749539606941,1.76222161,109410.0,109400.0,2.18015667]
[1749539607186,1.76222161,109410.0,109400.0,1.85725505]
[1749539607407,1.76222161,109410.0,109400.0,1.84015667]
[1749539607640,1.76222161,109410.0,109400.0,2.19725505]
[1749539608062,1.76222161,109410.0,109400.0,2.19725614]
[1749539608275,1.76222161,109410.0,109400.0,2.18015667]
[1749539608735,1.76222161,109410.0,109400.0,2.19725615]
[1749539608957,1.76222161,109410.0,109400.0,2.19725606]
[1749539610044,1.76222161,109410.0,109400.0,2.19725995]
[1749539610272,1.76222161,109410.0,109400.0,2.18015667]
[1749539610494,1.76222161,109410.0,109400.0,2.19725995]
[1749539610710,1.76222161,109410.0,109400.0,2.18015667]
[1749539610920,1.76222161,109410.0,109400.0,2.19725995]
[1749539611598,1.76222161,109410.0,109400.0,2.19726099]
[1749539611820,1.76222161,109410.0,109400.0,2.18015667]
[1749539612929,1.76222161,109410.0,109400.0,2.19727577]
[1749539613831,1.76222161,109410.0,109400.0,2.19727581]
[1749539614264,1.76222161,109410.0,109400.0,2.18015667]
[1749539614480,1.76222161,109410.0,109400.0,2.19727579]
[1749539614707,1.76222161,109410.0,109400.0,2.12435792]
[1749539615362,1.76222161,109410.0,109400.0,2.12435925]
[1749539615581,1.76222161,109410.0,109400.0,2.1072388]
[1749539615795,1.75308193,109410.0,109400.0,2.1072388]
[1749539616251,1.75308193,109410.0,109400.0,2.12435926]
[1749539616495,1.75308193,109410.0,109400.0,2.12435929]
[1749539617166,1.75308193,109410.0,109400.0,1.09857679]
[1749539617395,1.75308193,109410.0,109400.0,2.10895929]
[1749539617621,1.75308193,109410.0,109400.0,2.10895919]
[1749539618274,1.57942297,109410.0,109400.0,2.10895919]
[1749539618493,1.76222161,109410.0,109400.0,2.10895919]
[1749539619115,1.76222161,109410.0,109400.0,2.1089592]
[1749539619331,1.76222161,109410.0,109400.0,2.0918388]
[1749539619553,1.76222161,109410.0,109400.0,2.1089592]
[1749539619805,1.76222161,109410.0,109400.0,2.10895919]
[1749539620054,1.76222161,109410.0,109400.0,2.10895918]
[1749539620959,1.76222161,109410.0,109400.0,2.10896117]
[1749539621181,1.76222161,109410.0,109400.0,2.10896114]
[1749539621425,1.76222161,109410.0,109400.0,2.10896288]
[1749539621644,1.76222161,109410.0,109400.0,2.10896305]
[1749539622740,1.76222161,109410.0,109400.0,2.10896444]
[1749539622964,1.76222161,109410.0,109400.0,2.10896445]
[1749539623188,1.76222161,109410.0,109400.0,2.10896443]
[1749539623439,1.76222161,109410.0,109400.0,2.1089644]
[1749539623650,1.76222161,109410.0,109400.0,2.10896438]
[1749539624339,1.76222161,109410.0,109400.0,2.10896577]
[1749539624757,1.76222161,109410.0,109400.0,2.0918388]
[1749539624975,1.76222161,109410.0,109400.0,2.108966]
[1749539625223,1.76222161,109410.0,109400.0,2.0918388]
[1749539625440,1.76222161,109410.0,109400.0,2.108966]
[1749539626247,1.76222161,109410.0,109400.0,2.10896612]
[1749539627836,1.76222161,109410.0,109400.0,2.10896723]
[1749539628082,1.76222161,109410.0,109400.0,2.10896997]
[1749539628301,1.76222161,109410.0,109400.0,2.10896998]
[1749539628516,1.76222161,109410.0,109400.0,2.0918388]
[1749539628964,1.76222161,109410.0,109400.0,2.10896998]
[1749539629407,1.5885624,109410.0,109400.0,2.10896998]
[1749539630092,1.5885624,109410.0,109400.0,2.10896997]
[1749539630373,1.5885624,109410.0,109400.0,2.10896998]
[1749539630620,1.77136104,109410.0,109400.0,2.10896998]
[1749539631579,1.76222161,109410.0,109400.0,2.10896998]
[1749539632019,1.76222161,109410.0,109400.0,2.10897002]
[1749539632227,1.76222161,109410.0,109400.0,2.10897001]
[1749539632642,1.57942297,109410.0,109400.0,2.10897001]
[1749539632861,1.57942297,109410.0,109400.0,2.10897003]
[1749539633063,1.58856223,109410.0,109400.0,2.10897003]
[1749539633276,1.58856223,109410.0,109400.0,2.0918388]
[1749539633487,1.77136087,109410.0,109400.0,2.0918388]
[1749539633691,1.77136087,109410.0,109400.0,2.10897003]
[1749539633926,1.77136087,109410.0,109400.0,2.10897002]
[1749539634738,1.59770216,109410.0,109400.0,2.10897002]
[1749539634966,1.59770216,109410.0,109400.0,2.10897008]
[1749539635377,1.59770216,109410.0,109400.0,2.10897007]
[1749539635698,1.59757294,109410.0,109400.0,2.0918388]
[1749539636087,1.59757294,109410.0,109400.0,2.10897007]
[1749539636934,1.59757294,109410.0,109400.0,2.0918388]
[1749539637139,1.59757294,109410.0,109400.0,2.10897008]
[1749539637557,1.59757294,109410.0,109400.0,2.0918388]
[1749539637771,1.59757294,109410.0,109400.0,2.10897008]
[1749539638022,1.77123165,109410.0,109400.0,2.10897016]
[1749539638248,1.78037158,109410.0,109400.0,2.10897016]
[1749539638882,1.77819247,109410.0,109400.0,2.10897019]
[1749539639091,1.77819247,109410.0,109400.0,2.0918388]
[1749539639341,1.77819247,109410.0,109400.0,1.76897019]
[1749539639557,1.77819247,109410.0,109400.0,1.7518388]
[1749539639768,1.77819247,109410.0,109400.0,1.76897019]
[1749539640429,1.77819247,109410.0,109400.0,1.7689702]
[1749539640882,1.77819247,109410.0,109400.0,1.7518388]
[1749539641100,1.77819247,109410.0,109400.0,1.7689702]
[1749539641742,1.77819247,109410.0,109400.0,2.10897018]
[1749539642929,1.77819247,109410.0,109400.0,2.0918388]
[1749539643156,1.77819247,109410.0,109400.0,2.10897018]
[1749539643391,1.77819247,109410.0,109400.0,2.10897019]
[1749539643615,1.77819247,109410.0,109400.0,2.0918388]
[1749539643829,1.77819247,109410.0,109400.0,2.10897005]
[1749539644714,1.77819247,109410.0,109400.0,2.10897004]
[1749539644939,1.76905271,109410.0,109400.0,2.10897004]
[1749539645385,1.76905271,109410.0,109400.0,2.10897005]
[1749539645864,1.76905271,109410.0,109400.0,2.0918388]
[1749539646083,1.76905271,109410.0,109400.0,2.10896992]
[1749539646291,1.76905271,109410.0,109400.0,2.0918388]
[1749539646504,1.76905271,109410.0,109400.0,2.10896992]
[1749539647152,1.76905271,109410.0,109400.0,2.1089698]
[1749539647595,1.76905271,109410.0,109400.0,2.10896983]
[1749539647808,1.76905271,109410.0,109400.0,2.10896982]
[1749539648041,1.75295271,109410.0,109400.0,2.10896983]
[1749539649160,1.75295271,109410.0,109400.0,2.0918388]
[1749539649652,1.87755057,109410.0,109400.0,0.52325931]
[1749539649903,1.87755057,109410.0,109400.0,0.4587343]
[1749539650113,1.87755057,109410.0,109400.0,1.35875252]
[1749539650341,1.87755057,109410.0,109400.0,1.86394346]
[1749539650772,1.87755057,109410.0,109400.0,1.85535814]
[1749539651015,1.87755057,109410.0,109400.0,1.83824457]
[1749539651234,1.97017057,109410.0,109400.0,1.85535804]
[1749539651456,1.97017057,109410.0,109400.0,1.80053079]
[1749539652562,1.97017057,109410.0,109400.0,1.80053068]
[1749539652772,1.97017057,109410.0,109400.0,1.80053071]
[1749539652996,1.97017057,109410.0,109400.0,1.78341795]
[1749539653237,1.87665057,109410.0,109400.0,1.8940507]
[1749539653485,1.87665057,109410.0,109400.0,1.94881602]
[1749539654176,1.87665057,109410.0,109400.0,1.93170327]
[1749539655065,1.87665057,109410.0,109400.0,1.94881271]
[1749539655878,1.87665057,109410.0,109400.0,1.9488106]
[1749539656133,1.87665057,109410.0,109400.0,1.93170327]
[1749539657439,1.87665057,109410.0,109400.0,1.94881059]
[1749539658494,1.87665057,109410.0,109400.0,1.94880973]
[1749539659127,1.87665057,109410.0,109400.0,1.85528973]
[1749539659339,1.87665057,109410.0,109400.0,1.83818327]
[1749539659549,1.87665057,109410.0,109400.0,1.85528973]
[1749539660169,1.87665057,109410.0,109400.0,1.83818327]
[1749539660382,1.87665057,109410.0,109400.0,1.85528941]
[1749539660815,1.87652264,109410.0,109400.0,1.83818327]
[1749539661023,1.87652264,109410.0,109400.0,1.85528941]
[1749539661264,1.96996264,109410.0,109400.0,1.85528941]
[1749539662336,1.96996264,109410.0,109400.0,1.83818327]
[1749539662560,1.96996264,109410.0,109400.0,1.85528902]
[1749539662783,1.96996264,109410.0,109400.0,1.83818327]
[1749539662994,1.96996264,109410.0,109400.0,1.85528965]
[1749539663209,1.96996264,109410.0,109400.0,1.52384286]
[1749539663420,1.96996264,109410.0,109400.0,1.52384161]
[1749539663873,1.96996264,109410.0,109400.0,1.52384101]
[1749539664085,1.96996264,109410.0,109400.0,1.50673585]
[1749539664509,1.96996264,109410.0,109400.0,1.52384102]
[1749539664721,1.96996264,109410.0,109400.0,0.51345852]
[1749539664934,1.96996264,109410.0,109400.0,1.52384102]
[1749539665179,1.96996264,109410.0,109400.0,1.51528844]
[1749539665404,1.96996264,109410.0,109400.0,1.86384048]
[1749539665841,1.96996264,109410.0,109400.0,1.84673558]
[1749539666050,1.96996264,109410.0,109400.0,1.83818327]
[1749539666258,1.96996264,109410.0,109400.0,1.86257406]
[1749539666499,1.96996264,109410.0,109400.0,1.8625752]
[1749539666679,1.96996264,109410.0,109400.0,1.85402253]
[1749539666924,1.96996264,109410.0,109400.0,1.86257521]
[1749539667135,1.96996264,109410.0,109400.0,1.85402253]
[1749539667325,1.96996264,109410.0,109400.0,1.86257522]
[1749539667591,1.96996264,109410.0,109400.0,1.84546986]
[1749539667796,1.96996264,109410.0,109400.0,1.85402254]
[1749539668007,1.96996264,109410.0,109400.0,0.85219254]
[1749539668220,1.96996264,109410.0,109400.0,1.86257504]
[1749539669049,1.96996264,109410.0,109400.0,1.86257499]
[1749539669277,1.96996264,109410.0,109400.0,1.83691718]
[1749539669493,1.96996264,109410.0,109400.0,1.85402233]
[1749539669716,1.96996264,109410.0,109400.0,1.8625749]
[1749539670147,1.96996264,109410.0,109400.0,1.86257575]
[1749539670819,1.96996264,109410.0,109400.0,1.83691718]
[1749539671033,1.96996264,109410.0,109400.0,1.86257744]
[1749539671252,1.96996264,109410.0,109400.0,1.85402402]
[1749539671476,1.96996264,109410.0,109400.0,1.86257744]
[1749539671954,1.96996264,109410.0,109400.0,1.83691718]
[1749539672167,1.96996264,109410.0,109400.0,1.86257804]
[1749539672597,1.96996264,109410.0,109400.0,1.8729068]
[1749539672817,1.96996264,109410.0,109400.0,1.88146046]
[1749539673044,1.96996264,109410.0,109400.0,1.87290682]
[1749539673276,1.96996264,109410.0,109400.0,1.8900141]
[1749539674130,1.96996264,109410.0,109400.0,1.87290682]
[1749539674596,1.96676366,109410.0,109400.0,1.89001834]
[1749539674802,1.96676366,109410.0,109400.0,1.89001837]
[1749539675019,1.96676366,109410.0,109400.0,1.88146331]
[1749539675239,1.96676366,109410.0,109400.0,1.91191981]
[1749539675453,1.96676366,109410.0,109400.0,1.91192042]
[1749539675669,1.96676366,109410.0,109400.0,1.90336533]
[1749539675883,1.96676366,109410.0,109400.0,1.88625466]
[1749539676297,1.93478366,109410.0,109400.0,1.84860008]
[1749539676509,1.93478366,109410.0,109400.0,1.8485996]
[1749539676986,1.93478366,109410.0,109400.0,1.80958786]
[1749539677210,1.93478366,109410.0,109400.0,1.82670241]
[1749539677413,1.93478366,109410.0,109400.0,1.82670264]
[1749539677620,1.93478366,109410.0,109400.0,1.82670287]
[1749539677832,1.93478366,109410.0,109400.0,1.82670288]
[1749539678307,1.93478366,109410.0,109400.0,1.80958786]
[1749539678533,1.93478366,109410.0,109400.0,1.89979509]
[1749539678752,1.93478366,109410.0,109400.0,1.89980311]
[1749539679187,1.93478366,109410.0,109400.0,1.89980315]
[1749539679403,1.93478366,109410.0,109400.0,1.92171569]
[1749539679836,1.93478366,109410.0,109400.0,1.9045926]
[1749539680045,1.93478366,109410.0,109400.0,1.92171569]
[1749539680690,1.93478366,109410.0,109400.0,1.92171554]
[1749539680914,1.93478366,109410.0,109400.0,1.9045926]
[1749539681360,1.93478366,109410.0,109400.0,1.92171554]
[1749539681571,1.93478366,109410.0,109400.0,1.9045926]
[1749539681992,1.84142366,109410.0,109400.0,1.92171554]
[1749539682209,1.93474366,109410.0,109400.0,1.9045926]
[1749539682440,1.93474366,109410.0,109400.0,1.92171554]
[1749539682660,1.93474366,109410.0,109400.0,1.44437398]
[1749539683079,1.93474366,109410.0,109400.0,1.42725104]
[1749539683282,1.93474366,109410.0,109400.0,1.44437398]
[1749539683700,1.93474366,109410.0,109400.0,1.84437398]
[1749539683905,1.93474366,109410.0,109400.0,1.84437388]
[1749539684850,1.93461701,109410.0,109400.0,1.82725104]
[1749539685251,1.93461701,109410.0,109400.0,1.84437391]
[1749539685927,1.93461701,109410.0,109400.0,1.82725104]
[1749539686124,1.93461701,109410.0,109400.0,1.84437386]
[1749539686332,1.93461701,109410.0,109400.0,1.82725104]
[1749539686552,1.93461701,109410.0,109400.0,1.84437386]
[1749539686749,1.93461701,109410.0,109400.0,1.84441386]
[1749539688148,1.93461701,109410.0,109400.0,1.82729104]
[1749539688349,1.93461701,109410.0,109400.0,1.84441386]
[1749539689212,1.93461701,109410.0,109400.0,1.84441393]
[1749539690042,1.93461701,109410.0,109400.0,1.84441382]
[1749539690238,1.93461701,109410.0,109400.0,1.50441382]
[1749539691512,1.93461701,109410.0,109400.0,1.48729104]
[1749539691731,1.93461701,109410.0,109400.0,1.50441379]
[1749539692235,1.93461701,109410.0,109400.0,1.47697779]
[1749539692702,1.93461701,109410.0,109400.0,1.55006999]
[1749539692932,1.93461701,109410.0,109400.0,1.53294724]
[1749539693156,1.93461701,109410.0,109400.0,1.55007007]
[1749539693618,1.93461701,109410.0,109400.0,1.87294724]
[1749539693876,1.93461701,109410.0,109400.0,1.89007012]
[1749539694544,1.93461701,109410.0,109400.0,1.89863156]
[1749539694758,1.95041701,109410.0,109400.0,0.86256474]
[1749539694966,1.96561701,109410.0,109400.0,1.89863157]
[1749539695206,1.96561701,109410.0,109400.0,1.89863159]
[1749539695838,1.96561701,109410.0,109400.0,1.91692159]
[1749539696083,1.96561701,109410.0,109400.0,1.89863159]
[1749539696299,1.96561701,109410.0,109400.0,1.81697794]
[1749539696524,1.96561701,109410.0,109400.0,1.82554046]
[1749539696728,1.96561701,109410.0,109400.0,1.79985504]
[1749539696938,1.96561701,109410.0,109400.0,1.87177718]
[1749539697142,1.96561701,109410.0,109400.0,1.87177722]
[1749539697381,1.96561701,109410.0,109400.0,1.87177708]
[1749539698007,1.96561701,109410.0,109400.0,1.8169787]
[1749539698188,1.96561701,109410.0,109400.0,1.87177814]
[1749539698401,1.96561701,109410.0,109400.0,1.87177818]
[1749539698618,1.96561701,109410.0,109400.0,1.87177846]
[1749539698822,1.96561701,109410.0,109400.0,1.87177842]
[1749539699585,1.96561701,109410.0,109400.0,1.87820003]
[1749539700160,1.96561701,109410.0,109400.0,1.87820074]
[1749539700378,1.96561701,109410.0,109400.0,1.87820063]
[1749539701461,1.96561701,109410.0,109400.0,1.86107598]
[1749539701705,1.96561701,109410.0,109400.0,1.85465424]
[1749539701922,1.96561701,109410.0,109400.0,1.86107609]
[1749539702160,1.96561701,109410.0,109400.0,0.86781854]
[1749539702388,1.96561701,109410.0,109400.0,1.87820104]
[1749539702613,1.96561701,109410.0,109400.0,1.37300979]
[1749539703061,1.96561701,109410.0,109400.0,1.87788071]
[1749539703545,1.96561701,109410.0,109400.0,0.86749827]
[1749539703810,2.47080826,109410.0,109400.0,0.46791307]
[1749539704031,1.96561701,109410.0,109400.0,0.52165879]
[1749539704282,1.96561701,109410.0,109400.0,0.50867129]
[1749539704500,1.96561701,109410.0,109400.0,0.46734362]
[1749539704726,1.96561701,109410.0,109400.0,0.48247135]
[1749539704922,1.96561701,109410.0,109400.0,0.48346194]
[1749539705170,1.96561701,109410.0,109400.0,0.452969]
[1749539705387,1.96561701,109410.0,109400.0,0.46150473]
[1749539705520,1.96561701,109410.0,109400.0,0.46050504]
[1749539705889,1.96561701,109410.0,109400.0,0.46050518]
[1749539706097,1.96561701,109410.0,109400.0,0.46050529]
[1749539706535,1.96561701,109410.0,109400.0,0.43311698]
[1749539706748,1.96561701,109410.0,109400.0,0.43311699]
[1749539706957,1.96561701,109410.0,109400.0,0.00958932]
[1749539707135,1.96561701,109410.0,109400.0,0.03309917]
[1749539707370,2.47080826,109410.0,109400.0,0.03309917]
[1749539707605,1.96561701,109410.0,109400.0,0.43309917]
[1749539707819,2.47080826,109410.0,109400.0,0.43309919]
[1749539708038,2.47080826,109410.0,109400.0,0.43309843]
[1749539708237,2.47080826,109410.0,109400.0,0.40104]
[1749539708447,2.47080826,109410.0,109400.0,0.43309848]
[1749539709087,2.47068289,109410.0,109400.0,0.43309348]
[1749539709294,2.47068289,109410.0,109400.0,0.42667821]
[1749539709512,2.47068289,109410.0,109400.0,0.43308776]
[1749539709684,2.47068289,109410.0,109400.0,0.42454169]
[1749539709891,2.47068289,109410.0,109400.0,0.40104]
[1749539710052,2.47068289,109410.0,109400.0,0.41599562]
[1749539710250,2.47068289,109410.0,109400.0,0.43308776]
[1749539710452,2.47068289,109410.0,109400.0,0.03308776]
[1749539710795,2.47068289,109410.0,109400.0,0.01599525]
[1749539710954,2.47068289,109410.0,109400.0,0.4330864]
[1749539711153,2.47068289,109410.0,109400.0,0.40958557]
[1749539711471,2.47068289,109410.0,109400.0,0.42454033]
[1749539711652,2.47068289,109410.0,109400.0,0.41599476]
[1749539711868,2.47068289,109410.0,109400.0,0.43308592]
[1749539713089,2.47068289,109410.0,109400.0,0.43308354]
[1749539713299,2.47068289,109410.0,109400.0,0.43308086]
[1749539713475,2.47068289,109410.0,109400.0,0.40958423]
[1749539713682,2.47068289,109410.0,109400.0,0.43308086]
[1749539713997,2.47068289,109410.0,109400.0,0.03308086]
[1749539714233,2.47068289,109410.0,109400.0,0.02667269]
[1749539714473,2.47068289,109410.0,109400.0,0.02666675]
[1749539714891,2.47068289,109410.0,109400.0,0.02528]
[1749539715101,2.47068289,109410.0,109400.0,0.05090717]
[1749539715607,2.47068289,109410.0,109400.0,0.05090655]
[1749539716692,2.47068289,109410.0,109400.0,0.0338207]
[1749539716898,2.47068289,109410.0,109400.0,0.02528]
[1749539717104,2.47068289,109410.0,109400.0,0.0338207]
[1749539717359,2.47068289,109410.0,109400.0,0.0423614]
[1749539717584,2.47068289,109410.0,109400.0,0.0509021]
[1749539718058,2.47068289,109410.0,109400.0,0.4509021]
[1749539718511,2.47068289,109410.0,109400.0,0.45090211]
[1749539718744,2.47068289,109410.0,109400.0,0.44236141]
[1749539718970,2.47068289,109410.0,109400.0,0.45090249]
[1749539719658,2.47068289,109410.0,109400.0,0.4509017]
[1749539720114,1.96549164,109410.0,109400.0,0.4509017]
[1749539720361,1.96549164,109410.0,109400.0,0.43381997]
[1749539720590,2.47068289,109410.0,109400.0,0.45090178]
[1749539720834,2.47068289,109410.0,109400.0,0.44236119]
[1749539721068,2.47068289,109410.0,109400.0,0.03382059]
[1749539721296,2.47068289,109410.0,109400.0,0.04236118]
[1749539721516,2.47068289,109410.0,109400.0,0.45090177]
[1749539722210,2.47068289,109410.0,109400.0,0.44236118]
[1749539722432,2.47068289,109410.0,109400.0,0.42528]
[1749539722887,2.47068289,109410.0,109400.0,0.44236352]
[1749539723145,1.96549164,109410.0,109400.0,0.43382176]
[1749539723372,1.96549164,109410.0,109400.0,0.44236352]
[1749539723583,1.96549164,109410.0,109400.0,0.45090528]
[1749539723791,1.96549164,109410.0,109400.0,0.43382176]
[1749539724003,1.96549164,109410.0,109400.0,0.42528]
[1749539724493,1.96549164,109410.0,109400.0,0.44236352]
[1749539724724,2.47068289,109410.0,109400.0,0.45090532]
[1749539725645,2.47068289,109410.0,109400.0,0.442368]
[1749539726125,2.47068289,109410.0,109400.0,0.42528]
[1749539726825,2.47068289,109410.0,109400.0,0.450912]
[1749539727744,2.47068289,109410.0,109400.0,0.44236799]
[1749539727968,2.47068289,109410.0,109400.0,0.45091658]
[1749539728181,2.47068289,109410.0,109400.0,0.44237259]
[1749539728459,1.96549164,109410.0,109400.0,0.05091888]
[1749539728680,2.47068289,109410.0,109400.0,0.05091888]
[1749539728902,2.47068289,109410.0,109400.0,0.03382629]
[1749539729092,2.47068289,109410.0,109400.0,0.44237259]
[1749539729593,2.47068289,109410.0,109400.0,0.42528]
[1749539729832,2.47068289,109410.0,109400.0,0.44237259]
[1749539730060,2.47068289,109410.0,109400.0,0.45091888]
[1749539730292,2.47068289,109410.0,109400.0,0.44237259]
[1749539730524,2.47068289,109410.0,109400.0,0.45091888]
[1749539730757,2.47068289,109410.0,109400.0,0.44879349]
[1749539730982,2.47068289,109410.0,109400.0,0.45734385]
[1749539731234,2.47068289,109410.0,109400.0,0.42528]
[1749539732162,2.47068289,109410.0,109400.0,0.05144338]
[1749539732400,2.47068289,109410.0,109400.0,0.05144432]
[1749539732615,2.47068289,109410.0,109400.0,0.45144432]
[1749539733062,2.47068289,109410.0,109400.0,0.4257923]
[1749539733284,2.47055878,109410.0,109400.0,0.45148228]
[1749539733502,2.47055878,109410.0,109400.0,0.42794061]
[1749539733718,2.47055878,109410.0,109400.0,0.45148226]
[1749539734760,2.47055878,109410.0,109400.0,0.45148538]
[1749539735013,2.47055878,109410.0,109400.0,0.4343619]
[1749539735238,2.47055878,109410.0,109400.0,0.45148653]
[1749539735463,2.47055878,109410.0,109400.0,0.01938]
[1749539735700,2.47055878,109410.0,109400.0,0.02794174]
[1749539735939,2.47055878,109410.0,109400.0,0.45148653]
[1749539736385,2.47055878,109410.0,109400.0,0.45148706]
[1749539736621,2.47055878,109410.0,109400.0,0.05148714]
[1749539736816,2.47055878,109410.0,109400.0,0.06485023]
[1749539737035,2.47055878,109410.0,109400.0,0.05842864]
[1749539737263,3.40754789,109410.0,109400.0,0.06699177]
[1749539737485,3.40754789,109410.0,109390.0,0.02432]
[1749539737486,0.22425595,109400.0,109390.0,0.02432]
[1749539737718,1.41975631,109400.0,109390.0,0.05464462]
[1749539737943,2.27948841,109400.0,109390.0,0.00060521]
[1749539738169,2.30693841,109400.0,109390.0,0.00060521]
[1749539738452,2.39873627,109400.0,109390.0,0.00060521]
[1749539739770,1.89354502,109400.0,109390.0,0.00060521]
[1749539740432,1.89554502,109400.0,109390.0,0.00060521]
[1749539740631,1.89754502,109400.0,109390.0,0.00060521]
[1749539741260,2.45273627,109400.0,109390.0,0.00060521]
[1749539742921,1.94754502,109400.0,109390.0,0.00060521]
[1749539744189,2.45273627,109400.0,109390.0,0.00060521]
[1749539744412,1.94754502,109400.0,109390.0,0.00060521]
[1749539745273,2.43819542,109400.0,109390.0,0.00060521]
[1749539745692,1.93300417,109400.0,109390.0,0.00060521]
[1749539748315,0.1920086,109370.0,109360.0,0.4695773]
[1749539748514,0.39352646,109370.0,109360.0,0.46972289]
[1749539748745,0.39352646,109370.0,109360.0,0.46119589]
[1749539749418,0.39352646,109370.0,109360.0,0.06119589]
[1749539749635,0.39352646,109370.0,109360.0,0.06219589]
[1749539749859,0.39352646,109370.0,109360.0,0.47072209]
[1749539750664,0.40882646,109370.0,109360.0,0.47072209]
[1749539750864,0.91401771,109370.0,109360.0,0.47072209]
[1749539751222,0.91401771,109370.0,109360.0,0.46219589]
[1749539751572,0.40882646,109370.0,109360.0,0.06219589]
[1749539755526,0.40882646,109370.0,109360.0,0.46219589]
[1749539755732,0.91401771,109370.0,109360.0,0.46219589]
[1749539757157,0.40882646,109370.0,109360.0,0.46219589]
[1749539757678,0.4087036,109370.0,109360.0,0.46219589]
[1749539758534,0.4087036,109370.0,109360.0,0.06219589]
[1749539758946,0.91389485,109370.0,109360.0,0.46219589]
[1749539762130,0.91389485,109370.0,109360.0,0.07073416]
[1749539762782,0.91389485,109370.0,109360.0,0.47073416]
[1749539763409,1.25389485,109370.0,109360.0,0.47073418]
[1749539764259,1.25389485,109370.0,109360.0,0.07073418]
[1749539764469,1.25389485,109370.0,109360.0,0.08784619]
[1749539764682,1.25389485,109370.0,109360.0,0.0793079]
[1749539764908,1.25389485,109370.0,109360.0,0.08786408]
[1749539765349,1.25389485,109370.0,109360.0,0.0878641]
[1749539765562,1.25389485,109370.0,109360.0,0.06219589]
[1749539765772,1.25389485,109370.0,109360.0,0.0878641]
[1749539766709,1.25389485,109370.0,109360.0,0.070752]
[1749539766920,1.25389485,109370.0,109360.0,0.08786423]
[1749539767955,0.7487036,109370.0,109360.0,0.08786423]
[1749539768168,1.22269485,109370.0,109360.0,0.08786423]
[1749539768372,0.7175036,109370.0,109360.0,0.06219589]
[1749539768586,1.23183795,109370.0,109360.0,0.0878794]
[1749539769015,1.23183795,109370.0,109360.0,0.07075706]
[1749539769227,1.23183795,109370.0,109360.0,0.0878794]
[1749539770068,0.89183795,109370.0,109360.0,0.07076133]
[1749539770282,0.89183795,109370.0,109360.0,0.08789221]
[1749539770509,0.89183795,109370.0,109360.0,0.06219589]
[1749539770719,0.89183795,109370.0,109360.0,0.07076133]
[1749539770941,0.89183795,109370.0,109360.0,0.06219589]
[1749539771168,0.89183795,109370.0,109360.0,0.06369277]
[1749539771169,1.74745923,109370.0,109360.0,0.06369277]
[1749539771396,1.74745923,109370.0,109360.0,0.04656152]
[1749539771622,1.24226798,109370.0,109360.0,0.03799589]
[1749539771842,1.23183795,109370.0,109360.0,0.03799589]
[1749539772048,1.25929495,109370.0,109360.0,0.03699589]
[1749539772956,1.26229495,109370.0,109360.0,0.03699589]
[1749539773171,1.16897495,109370.0,109360.0,0.03699589]
[1749539773388,1.26129495,109370.0,109360.0,0.03699589]
[1749539773616,1.26229495,109370.0,109360.0,0.03699589]
[1749539773862,0.19204372,109350.0,109340.0,0.85932906]
[1749539774071,0.37716158,109350.0,109340.0,0.88501597]
[1749539774288,0.37716158,109350.0,109340.0,0.8851046]
[1749539774507,0.37716158,109350.0,109340.0,0.87654437]
[1749539774725,0.37716158,109350.0,109340.0,0.37991646]
[1749539774932,0.37716158,109350.0,109340.0,0.88510771]
[1749539775168,0.37716158,109350.0,109340.0,0.38091646]
[1749539775586,0.37716158,109350.0,109340.0,0.36378978]
[1749539775793,0.37716158,109350.0,109340.0,0.38091646]
[1749539775794,0.40461858,109350.0,109340.0,0.38091646]
[1749539776860,0.40461858,109350.0,109340.0,0.38091555]
[1749539777285,0.40461858,109350.0,109340.0,0.36378887]
[1749539777492,0.74461858,109350.0,109340.0,0.38091374]